fUSD/lending_fUSD_20240819
["ID","MTS","AMOUNT","RATE_DAILY","PERIOD"]
[335252546,1724038239240,-1275.64,0.00010998,2]
[335252547,1724038239249,-3043.98,0.00010998,2]
[335252548,1724038239259,-3043.98,0.00010998,2]
[335252549,1724038239269,-814.92,0.00010998,2]
[335252550,1724038239278,-814.92,0.00010998,2]
[335252551,1724038239292,-1560.78,0.00010998,2]
[335252552,1724038239302,-1560.78,0.00010998,2]
[335252553,1724038239311,-500.0,0.00010998,2]
[335252554,1724038239321,-500.0,0.00010998,2]
[335252555,1724038239331,-151.0,0.00010998,2]
[335252556,1724038239341,-737.98,0.00010998,2]
[335252557,1724038239351,-737.98,0.00010998,2]
[335252558,1724038239361,-539.475672,0.00010998,2]
[335252559,1724038239370,-500.0,0.00010998,2]
[335252560,1724038239380,-500.0,0.00010998,2]
[335252561,1724038239390,-539.475672,0.00010998,2]
[335252562,1724038239399,-332.5340705,0.00010998,2]
[335252563,1724038239408,-500.0,0.00010998,2]
[335252564,1724038239418,-500.0,0.00010998,2]
[335252565,1724038239427,-237.86505533,0.00010998,2]
[335252566,1724038239437,-500.0,0.00010998,2]
[335252567,1724038239446,-500.0,0.00010998,2]
[335252568,1724038239455,-647.47,0.00010998,2]
[335252569,1724038239467,-647.47,0.00010998,2]
[335252570,1724038239477,-2000.0,0.00010999,2]
[335252571,1724038239490,-283.429259,0.00010999,2]
[335252572,1724038239499,-1562.43,0.00010999,2]
[335252573,1724038239508,-1562.43,0.00010999,2]
[335252574,1724038239518,-1562.43,0.00010999,2]
[335252575,1724038239529,-1562.43,0.00010999,2]
[335252576,1724038239541,-1562.43,0.00010999,2]
[335252577,1724038239550,-1562.43,0.00010999,2]
[335252578,1724038239562,-1562.43,0.00010999,2]
[335252579,1724038239572,-1562.43,0.00010999,2]
[335252580,1724038239582,-1562.43,0.00010999,2]
[335252581,1724038239592,-1562.43,0.00010999,2]
[335252582,1724038239601,-1562.43,0.00010999,2]
[335252583,1724038239611,-1562.43,0.00010999,2]
[335252584,1724038239620,-1562.43,0.00010999,2]
[335252585,1724038239630,-1562.43,0.00010999,2]
[335252586,1724038239639,-1562.43,0.00010999,2]
[335252587,1724038239649,-1562.43,0.00010999,2]
[335252588,1724038239658,-1562.43,0.00010999,2]
[335252589,1724038239668,-1562.43,0.00010999,2]
[335252590,1724038239677,-1562.43,0.00010999,2]
[335252591,1724038239686,-1562.43,0.00010999,2]
[335252592,1724038239695,-1562.43,0.00010999,2]
[335252593,1724038239704,-1562.62124187,0.00010999,2]
[335252594,1724038239713,-151.0,0.00010999,2]
[335252595,1724038239723,-155.088001,0.00010999,2]
[335252596,1724038239732,-151.0,0.00010999,2]
[335252597,1724038239741,-151.0,0.00010999,2]
[335252598,1724038239750,-151.0,0.00010999,2]
[335252599,1724038239760,-151.0,0.00010999,2]
[335252600,1724038239770,-151.0,0.00010999,2]
[335252601,1724038239779,-151.0,0.00010999,2]
[335252602,1724038239799,-151.0,0.00010999,2]
[335252603,1724038239809,-151.0,0.00010999,2]
[335252604,1724038239819,-151.0,0.00010999,2]
[335252605,1724038239828,-166.688791,0.00010999,2]
[335252606,1724038239837,-229.312018,0.00010999,2]
[335252607,1724038239847,-2311.458791,0.00010999,2]
[335252608,1724038239856,-2311.458791,0.00010999,2]
[335252609,1724038239866,-2311.458791,0.00010999,2]
[335252610,1724038239875,-2311.458791,0.00010999,2]
[335252611,1724038239884,-2311.458791,0.00010999,2]
[335252612,1724038239894,-2311.458791,0.00010999,2]
[335252613,1724038239903,-2311.458791,0.00010999,2]
[335252614,1724038239912,-2311.458791,0.00010999,2]
[335252615,1724038239922,-2311.458791,0.00010999,2]
[335252616,1724038239931,-2311.458791,0.00010999,2]
[335252617,1724038239940,-2311.458791,0.00010999,2]
[335252618,1724038239950,-2311.458791,0.00010999,2]
[335252619,1724038239958,-2311.458791,0.00010999,2]
[335252620,1724038239968,-2311.458791,0.00010999,2]
[335252621,1724038239978,-2311.458791,0.00010999,2]
[335252622,1724038239987,-2311.458791,0.00010999,2]
[335252623,1724038239997,-2311.458791,0.00010999,2]
[335252624,1724038240007,-1715.44197194,0.00010999,2]
[335252626,1724038241194,-307.10774391,0.00010861,2]
[335252630,1724038243559,-296.02248597,0.00010861,2]
[335252631,1724038243569,-342.09149517,0.00010999,2]
[335252644,1724038247037,-1076.0,0.00010903,2]
[335252645,1724038247048,-293.21852986,0.00010993,2]
[335252646,1724038247057,-150.01,0.00010998,2]
[335252647,1724038247066,-253.92532389,0.00010999,2]
[335252648,1724038247076,-2311.458791,0.00010999,2]
[335252649,1724038247085,-1784.49609363,0.00010999,2]
[335252650,1724038247103,-526.96269537,0.00010999,2]
[335252651,1724038247112,-52.81730463,0.00010999,2]
[335252652,1724038316389,288.81,9.115e-05,2]
[335252654,1724038793678,282.21,8.219e-05,2]
[335252655,1724038831859,-357.4813523,9.999e-05,2]
[335252656,1724038831880,-1038.45,0.0001,2]
[335252657,1724038852850,155.5628945,9.962e-05,2]
[335252658,1724038976685,7494.67,9.985e-05,2]
[335252659,1724039012301,640.0,9.857e-05,2]
[335252660,1724039102895,301.15,9.967e-05,2]
[335252661,1724039167511,2031.18,9.999e-05,2]
[335252670,1724039369620,-174.4,9.908e-05,2]
[335252671,1724039369652,-491.39434855,9.929e-05,2]
[335252676,1724039431548,-181.34243174,9.999e-05,2]
[335252677,1724039431557,-518.2176203,9.999e-05,2]
[335252678,1724039431567,-155.41013361,9.999e-05,2]
[335252679,1724039431576,-550.0,0.0001,2]
[335252680,1724039431585,-256.14758321,0.00010026,2]
[335252681,1724039431594,-155.0,0.00010097,2]
[335252682,1724039431603,-172.2,0.0001013,2]
[335252683,1724039431612,-3025.9502731,0.00010335,2]
[335252684,1724039431621,-150.0,0.00010438,2]
[335252685,1724039431630,-217.44,0.00010464,2]
[335252686,1724039431639,-360.0,0.00010464,2]
[335252687,1724039431648,-316.9637025,0.00010471,2]
[335252688,1724039431657,-282.21,0.00010474,2]
[335252689,1724039431666,-69.11825551,0.00010566,2]
[335252690,1724039431678,-3804.41474252,0.00010566,2]
[335252691,1724039431694,-439.35,0.00010566,2]
[335252692,1724039431714,-249.50979713,0.00010566,2]
[335252693,1724039431723,-660.97560103,0.00010566,2]
[335252694,1724039431732,-300.0,0.00010599,2]
[335252695,1724039431741,-300.0,0.00010599,2]
[335252696,1724039431750,-1000.0,0.000106,7]
[335252697,1724039431759,-420.61460184,0.00010699,2]
[335252698,1724039431770,-56.79666957,0.00010699,2]
[335252699,1724039431778,-827.0959255,0.000107,4]
[335252700,1724039431789,-869.77887263,0.000107,4]
[335252701,1724039431799,-150.56267527,0.0001077,2]
[335252702,1724039431807,-741.61979734,0.00010852,2]
[335252703,1724039431826,-454.74195317,0.00010852,2]
[335252828,1724039439722,-79.65291329,0.00010852,2]
[335252830,1724039439732,-537.12442825,0.00010862,2]
[335252832,1724039439741,-507.85865847,0.00010862,2]
[335252834,1724039439751,-155.0,0.00010888,2]
[335252836,1724039439760,-155.08594531,0.00010888,2]
[335252838,1724039439769,-297.94,0.0001089,2]
[335252840,1724039439779,-459.38528762,0.0001089,2]
[335252841,1724039439788,-167.78099439,0.00010899,2]
[335252843,1724039439798,-237.73402969,0.00010949,2]
[335252846,1724039439809,-286.91164733,0.00010949,2]
[335252848,1724039439819,-150.0,0.00010958,2]
[335252849,1724039439829,-2574.59375749,0.00010959,2]
[335252852,1724039439840,-336.26356257,0.00010959,2]
[335252856,1724039439887,-297.94,0.00010959,2]
[335252877,1724039440100,-408.90135566,0.00010959,2]
[335253156,1724039445605,-211.79147823,0.00010899,2]
[335253157,1724039445614,-2367.91722428,0.00010959,2]
[335253158,1724039445624,-250.0,0.00010959,2]
[335253159,1724039445634,-150.0,0.00010959,2]
[335253160,1724039445644,-223.08654922,0.00010979,2]
[335253161,1724039445711,-78.94823305,0.00010979,2]
[335253162,1724039445721,-155.0,0.00010979,2]
[335253163,1724039445731,-253.22695752,0.00010993,2]
[335253164,1724039445743,-150.01,0.00010998,2]
[335253165,1724039445754,-517.73838384,0.00010998,2]
[335253166,1724039445763,-528.13933819,0.00010998,2]
[335253167,1724039445773,-1169.34,0.00010998,2]
[335253168,1724039445782,-1169.34,0.00010998,2]
[335253169,1724039445792,-2790.32,0.00010998,2]
[335253170,1724039445802,-2790.32,0.00010998,2]
[335253171,1724039445813,-500.0,0.00010998,2]
[335253172,1724039445824,-500.0,0.00010998,2]
[335253173,1724039445835,-500.0,0.00010998,2]
[335253174,1724039445846,-378.53835033,0.00010998,2]
[335253250,1724039690510,261.82,8.325e-05,2]
[335253267,1724039988265,200.0,9.853e-05,2]
[335253270,1724040069323,23900.0,9.836e-05,2]
[335253272,1724040139903,3940.15,9.803e-05,2]
[335253273,1724040147144,500.0,9.811e-05,2]
[335253274,1724040165327,256.55,8.219e-05,2]
[335253276,1724040180480,10993.51,9.84e-05,2]
[335253277,1724040192262,874.53,9.863e-05,2]
[335253279,1724040215337,217.45,9.847e-05,2]
[335253281,1724040237085,348.6,9.808e-05,2]
[335253283,1724040289624,2370.79,9.801e-05,2]
[335253285,1724040312866,250.0,9.738e-05,2]
[335253286,1724040381439,311.38,9.804e-05,2]
[335253287,1724040414543,186.14,9.84e-05,2]
[335253288,1724040426475,488.0,9.875e-05,2]
[335253290,1724040436803,155.0,9.899e-05,2]
[335253291,1724040451588,155.0,9.899e-05,2]
[335253292,1724040500549,500.0,8.22e-05,2]
[335253294,1724040554121,-1303.17,9.908e-05,2]
[335253295,1724040554150,-1029.30600484,9.941e-05,2]
[335253298,1724040554669,-7.12923578,9.941e-05,2]
[335253299,1724040554890,-1249.29,9.941e-05,2]
[335253300,1724040554914,-512.0,9.941e-05,2]
[335253301,1724040554935,-500.0,0.0001,2]
[335253302,1724040554959,-500.0,0.0001,2]
[335253303,1724040554983,-500.0,0.0001,2]
[335253310,1724040637849,-976.33621649,9.999e-05,2]
[335253311,1724040637858,-356.53302151,0.00010009,2]
[335253389,1724040639798,-666.47678803,0.00010009,2]
[335253390,1724040639956,-290.38949713,0.00010009,2]
[335253391,1724040639966,-286.75,0.0001003,2]
[335253392,1724040639975,-317.83263758,0.00010097,2]
[335253393,1724040639985,-172.62,0.00010293,2]
[335253394,1724040639995,-300.0,0.00010299,2]
[335253395,1724040640004,-9786.43688901,0.000103,2]
[335253396,1724040640016,-213.56311099,0.000103,2]
[335253397,1724040640026,-67.09901009,0.000104,5]
[335253398,1724040640166,-298.57312534,0.000104,5]
[335253399,1724040640177,-771.40912885,0.000104,5]
[335253400,1724040640189,-613.96164517,0.000104,5]
[335253401,1724040640200,-1028.443,0.000104,5]
[335253402,1724040640211,-2435.38767799,0.000104,5]
[335253409,1724040643242,-316.220239,0.0001,2]
[335253410,1724040643274,288.69,8.239e-05,2]
[335253411,1724040643293,-1183.779761,0.0001,2]
[335253412,1724040643303,-299.57007155,0.00010009,2]
[335253413,1724040643314,-4270.37602553,0.00010359,2]
[335253414,1724040643327,-701.11,0.00010359,2]
[335253417,1724040645837,-254.08592998,0.00010359,2]
[335253418,1724040645848,-3052.56,0.00010359,2]
[335253419,1724040645859,-409.86,0.00010359,2]
[335253420,1724040645891,-1312.00804449,0.00010359,2]
[335253421,1724040645900,-1044.42241468,0.00010359,2]
[335253422,1724040645911,-2544.01325688,0.00010359,2]
[335253423,1724040645946,-1973.60967681,0.00010359,2]
[335253424,1724040646000,-1312.03395148,0.00010359,2]
[335253425,1724040646010,-209.63171772,0.000104,5]
[335253426,1724040646384,-279.405,0.000104,5]
[335253427,1724040646397,-895.73293621,0.000104,5]
[335253428,1724040700079,-500.0,9.999e-05,2]
[335253429,1724040700099,-500.0,9.999e-05,2]
[335253430,1724040713706,-500.0,9.999e-05,2]
[335253431,1724040713726,-500.0,9.999e-05,2]
[335253432,1724040713747,-500.0,9.999e-05,2]
[335253433,1724040713766,-500.0,9.999e-05,2]
[335253434,1724040713786,-180.62,9.999e-05,2]
[335253435,1724040748971,169.91329107,9.595e-05,2]
[335253438,1724040769505,-500.0,9.999e-05,2]
[335253439,1724040769526,-500.0,9.999e-05,2]
[335253440,1724040769548,-500.0,9.999e-05,2]
[335253441,1724040769570,-175.08,9.999e-05,2]
[335253442,1724040769590,-500.0,9.999e-05,2]
[335253443,1724040769611,-500.0,9.999e-05,2]
[335253444,1724040769632,-500.0,9.999e-05,2]
[335253446,1724040850578,-500.0,9.999e-05,2]
[335253447,1724040850600,-219.69,9.999e-05,2]
[335253448,1724040850622,-500.0,9.999e-05,2]
[335253449,1724040850643,-500.0,9.999e-05,2]
[335253450,1724040850663,-500.0,9.999e-05,2]
[335253452,1724040908642,-500.0,9.999e-05,2]
[335253453,1724040908662,-500.0,9.999e-05,2]
[335253454,1724040908682,-500.0,9.999e-05,2]
[335253455,1724040908702,-500.0,9.999e-05,2]
[335253456,1724040908722,-500.0,9.999e-05,2]
[335253458,1724040981604,-500.0,9.988e-05,3]
[335253459,1724040981625,-1276.0,9.999e-05,2]
[335253460,1724041043248,-1276.0146638,9.988e-05,2]
[335253461,1724041053616,-550.0,0.0001,2]
[335253462,1724041064571,-1276.0146638,9.943e-05,2]
[335253463,1724041168231,308.21,8.219e-05,2]
[335253464,1724041179476,-9490.8,9.958e-05,2]
[335253466,1724041242587,256.62,9.872e-05,2]
[335253468,1724041255597,-172.61,9.967e-05,2]
[335253469,1724041255621,-127.39,9.999e-05,2]
[335253470,1724041258355,250.0,9.86e-05,2]
[335253471,1724041259281,566.92,9.86e-05,2]
[335253472,1724041304447,9249.78,9.866e-05,2]
[335253473,1724041370448,390.4,9.842e-05,2]
[335253474,1724041449070,662.18,9.788e-05,2]
[335253475,1724041450591,476.74,9.788e-05,2]
[335253476,1724041563060,1356.6,9.789e-05,2]
[335253477,1724041584561,195.62,9.823e-05,2]
[335253478,1724041661293,300.67,8.219e-05,2]
[335253479,1724041668241,3692.07,9.765e-05,2]
[335253480,1724041682408,1043.98,9.742e-05,2]
[335253482,1724041727260,210.63,9.7e-05,2]
[335253488,1724041752311,2034.49444349,9.899e-05,2]
[335253489,1724041753942,155.0,9.899e-05,2]
[335253493,1724041772599,250.0,9.739e-05,2]
[335253496,1724041811798,-174.41,9.902e-05,2]
[335253497,1724041811829,-3542.90119226,9.918e-05,2]
[335253498,1724041811877,-3717.31119226,9.918e-05,2]
[335253499,1724041812056,-1447.99430515,9.918e-05,2]
[335253501,1724041830910,264.28,9.656e-05,2]
[335253526,1724041838490,-20.78331033,9.918e-05,2]
[335253527,1724041838498,-155.0,9.941e-05,2]
[335253528,1724041838507,-155.0,9.943e-05,2]
[335253529,1724041838516,-825.26844955,9.988e-05,2]
[335253530,1724041838532,-250.12856752,9.988e-05,2]
[335253531,1724041838541,-300.0,9.998e-05,2]
[335253532,1724041838550,-478.67,9.999e-05,2]
[335253533,1724041838559,-500.0,9.999e-05,2]
[335253534,1724041838568,-500.0,9.999e-05,2]
[335253535,1724041838578,-185.56,9.999e-05,2]
[335253536,1724041838587,-204.62312072,0.0001,2]
[335253537,1724041838596,-1430.5650746,0.00010009,2]
[335253538,1724041838605,-4061.21399524,0.00010026,2]
[335253539,1724041838614,-609.6,0.0001005,2]
[335253540,1724041838623,-168.06,0.00010084,2]
[335253541,1724041838633,-649.92257342,0.00010097,2]
[335253542,1724041838642,-3000.0,0.0001026,2]
[335253543,1724041838650,-3000.0,0.0001026,2]
[335253544,1724041838661,-150.0,0.00010358,2]
[335253545,1724041838670,-3000.0,0.00010359,2]
[335253546,1724041838678,-3000.0,0.00010359,2]
[335253547,1724041838688,-3000.0,0.00010359,2]
[335253548,1724041838696,-3000.0,0.00010359,2]
[335253549,1724041838709,-2420.0,0.000104,5]
[335253550,1724041838718,-300.67,0.00010463,2]
[335253551,1724041838727,-155.0,0.00010471,2]
[335253552,1724041838736,-185.19607054,0.00010471,2]
[335253553,1724041838745,-420.6341917,0.00010486,2]
[335253554,1724041838755,-2162.40715481,0.000105,2]
[335253555,1724041838764,-336.83458128,0.00010505,2]
[335253556,1724041838772,-155.52696295,0.00010505,2]
[335253557,1724041838782,-388.3389585,0.00010542,2]
[335253558,1724041838791,-155.50708164,0.00010699,2]
[335253559,1724041838800,-203.41395605,0.00010699,2]
[335253560,1724041838809,-164.40260801,0.00010699,2]
[335253561,1724041838818,-1076.0,0.00010756,2]
[335253562,1724041838827,-213.4978,0.00010799,2]
[335253563,1724041838836,-1164.9094,0.00010799,2]
[335253564,1724041838845,-164.37927092,0.00010799,2]
[335253565,1724041838856,-299.85042188,0.00010799,2]
[335253566,1724041838867,-3877.81959156,0.00010799,2]
[335253567,1724041838879,-892.4875981,0.00010799,2]
[335253568,1724041838891,-1276.0146638,0.00010799,2]
[335253569,1724041838903,-401.62337545,0.000108,2]
[335253570,1724041838915,-420.6341917,0.00010841,2]
[335253571,1724041838927,-766.0,0.00010852,2]
[335253572,1724041838937,-1673.0,0.00010852,2]
[335253573,1724041838947,-21769.0,0.00010852,2]
[335253574,1724041838957,-963.934,0.00010852,2]
[335253575,1724041838968,-264.28,0.00010863,2]
[335253576,1724041838978,-416.8454,0.00010879,2]
[335253577,1724041838989,-172.814,0.00010899,2]
[335253578,1724041839000,-1923.3121,0.00010899,2]
[335253579,1724041839011,-39188.5779,0.00010899,2]
[335253580,1724041839023,-1000.0,0.00010899,2]
[335253581,1724041839034,-7500.0,0.00010899,2]
[335253582,1724041839045,-151.0,0.00010899,2]
[335253583,1724041839057,-151.0,0.00010899,2]
[335253584,1724041839067,-269.257796,0.00010899,2]
[335253585,1724041839078,-269.257796,0.00010899,2]
[335253586,1724041839089,-151.0,0.00010899,2]
[335253587,1724041839101,-151.0,0.00010899,2]
[335253588,1724041839112,-204.654838,0.00010899,2]
[335253589,1724041839123,-341.018635,0.00010899,2]
[335253590,1724041839135,-341.018635,0.00010899,2]
[335253591,1724041839145,-485.528105,0.00010899,2]
[335253592,1724041839156,-151.0,0.00010899,2]
[335253593,1724041839168,-485.528105,0.00010899,2]
[335253594,1724041839179,-151.0,0.00010899,2]
[335253595,1724041839190,-220.336943,0.00010899,2]
[335253596,1724041839200,-220.336943,0.00010899,2]
[335253597,1724041839211,-1001.168319,0.00010899,2]
[335253598,1724041839222,-151.0,0.00010899,2]
[335253599,1724041839233,-1001.168319,0.00010899,2]
[335253600,1724041839244,-8226.987936,0.00010899,2]
[335253601,1724041839254,-8226.987936,0.00010899,2]
[335253602,1724041839265,-151.0,0.00010899,2]
[335253603,1724041839275,-1273.99,0.000109,2]
[335253604,1724041839285,-388.3389585,0.00010934,2]
[335253605,1724041839294,-500.0,0.0001096,2]
[335253606,1724041839303,-166.181651,0.00010979,2]
[335253607,1724041839314,-166.181651,0.00010979,2]
[335253608,1724041839325,-151.0,0.00010979,2]
[335253609,1724041839335,-151.0,0.00010979,2]
[335253610,1724041839346,-151.461743,0.00010979,2]
[335253611,1724041839356,-269.257796,0.00010979,2]
[335253612,1724041839367,-269.257796,0.00010979,2]
[335253613,1724041839378,-151.0,0.00010979,2]
[335253614,1724041839390,-455.495338,0.00010979,2]
[335253615,1724041839401,-455.495338,0.00010979,2]
[335253616,1724041839413,-151.0,0.00010979,2]
[335253617,1724041839425,-151.29365,0.00010979,2]
[335253618,1724041839437,-341.018635,0.00010979,2]
[335253619,1724041839450,-151.0,0.00010979,2]
[335253620,1724041839466,-2952.613592,0.00010979,2]
[335253621,1724041839477,-341.018635,0.00010979,2]
[335253622,1724041839489,-2952.613592,0.00010979,2]
[335253623,1724041839499,-485.528105,0.00010979,2]
[335253624,1724041839510,-151.47535,0.00010979,2]
[335253625,1724041839520,-485.528105,0.00010979,2]
[335253626,1724041839531,-151.0,0.00010979,2]
[335253627,1724041839542,-220.336943,0.00010979,2]
[335253628,1724041839551,-220.336943,0.00010979,2]
[335253629,1724041839562,-1001.168319,0.00010979,2]
[335253630,1724041839573,-1001.168319,0.00010979,2]
[335253631,1724041839585,-151.254145,0.00010979,2]
[335253632,1724041839596,-1001.168319,0.00010979,2]
[335253633,1724041839606,-1001.168319,0.00010979,2]
[335253634,1724041839618,-8226.987936,0.00010979,2]
[335253635,1724041839630,-8226.987936,0.00010979,2]
[335253636,1724041839640,-151.0,0.00010979,2]
[335253638,1724041839650,-151.0,0.00010989,2]
[335253639,1724041839663,-8226.987936,0.00010989,2]
[335253640,1724041839676,-8226.987936,0.00010989,2]
[335253641,1724041839688,-151.0,0.00010989,2]
[335253642,1724041839699,-266.0,0.0001099,2]
[335253643,1724041839715,-151.0,0.0001099,2]
[335253644,1724041839728,-220.336943,0.0001099,2]
[335253645,1724041839740,-220.336943,0.0001099,2]
[335253646,1724041839751,-151.0,0.00010993,2]
[335253647,1724041839761,-151.0,0.00010993,2]
[335253648,1724041839772,-151.0,0.00010993,2]
[335253649,1724041839785,-1001.168319,0.00010993,2]
[335253650,1724041839796,-1001.168319,0.00010993,2]
[335253651,1724041839808,-420.6341917,0.00010995,2]
[335253652,1724041839818,-1071.89,0.00010997,2]
[335253653,1724041839830,-892.24,0.00010997,2]
[335253655,1724041839840,-2557.79,0.00010997,2]
[335253657,1724041839852,-1237.81,0.00010997,2]
[335253659,1724041839863,-500.0,0.00010997,2]
[335253660,1724041839875,-500.0,0.00010997,2]
[335253661,1724041839885,-747.01,0.00010997,2]
[335253662,1724041839898,-1765.17,0.00010997,2]
[335253663,1724041839912,-500.0,0.00010997,2]
[335253664,1724041839923,-676.49,0.00010997,2]
[335253665,1724041839934,-500.0,0.00010997,2]
[335253666,1724041839945,-500.0,0.00010997,2]
[335253667,1724041839956,-232.16444723,0.00010998,2]
[335253668,1724041839966,-279.860423,0.00010998,2]
[335253669,1724041839977,-151.0,0.00010998,2]
[335253670,1724041839989,-151.0,0.00010998,2]
[335253671,1724041839999,-151.0,0.00010998,2]
[335253672,1724041840010,-2268.589239,0.00010998,2]
[335253673,1724041840020,-2268.589239,0.00010998,2]
[335253674,1724041840031,-2268.589239,0.00010998,2]
[335253675,1724041840041,-151.0,0.00010998,2]
[335253676,1724041840051,-151.0,0.00010998,2]
[335253677,1724041840061,-151.0,0.00010998,2]
[335253678,1724041840071,-2268.589239,0.00010998,2]
[335253679,1724041840081,-2268.589239,0.00010998,2]
[335253680,1724041840091,-2268.589239,0.00010998,2]
[335253681,1724041840101,-166.181651,0.00010998,2]
[335253682,1724041840112,-166.181651,0.00010998,2]
[335253683,1724041840122,-166.181651,0.00010998,2]
[335253684,1724041840132,-166.181651,0.00010998,2]
[335253685,1724041840142,-166.181651,0.00010998,2]
[335253686,1724041840153,-166.181651,0.00010998,2]
[335253687,1724041840165,-166.181651,0.00010998,2]
[335253688,1724041840175,-166.181651,0.00010998,2]
[335253689,1724041840186,-151.0,0.00010998,2]
[335253690,1724041840196,-151.0,0.00010998,2]
[335253691,1724041840207,-151.560231,0.00010998,2]
[335253692,1724041840216,-151.0,0.00010998,2]
[335253693,1724041840227,-151.0,0.00010998,2]
[335253694,1724041840237,-241.564872,0.00010998,2]
[335253695,1724041840248,-1001.168319,0.00010998,2]
[335253696,1724041840259,-500.0,0.00010998,2]
[335253697,1724041840269,-500.0,0.00010998,2]
[335253698,1724041840279,-269.257796,0.00010998,2]
[335253699,1724041840290,-269.257796,0.00010998,2]
[335253700,1724041840300,-269.257796,0.00010998,2]
[335253701,1724041840310,-269.257796,0.00010998,2]
[335253702,1724041840320,-269.257796,0.00010998,2]
[335253703,1724041840330,-269.257796,0.00010998,2]
[335253704,1724041840339,-269.257796,0.00010998,2]
[335253705,1724041840349,-269.257796,0.00010998,2]
[335253706,1724041840360,-269.257796,0.00010998,2]
[335253707,1724041840370,-269.257796,0.00010998,2]
[335253708,1724041840380,-269.257796,0.00010998,2]
[335253709,1724041840389,-269.257796,0.00010998,2]
[335253710,1724041840399,-151.0,0.00010998,2]
[335253711,1724041840410,-151.0,0.00010998,2]
[335253712,1724041840420,-151.0,0.00010998,2]
[335253713,1724041840430,-151.0,0.00010998,2]
[335253714,1724041840440,-151.0,0.00010998,2]
[335253715,1724041840450,-455.495338,0.00010998,2]
[335253716,1724041840462,-455.495338,0.00010998,2]
[335253717,1724041840472,-455.495338,0.00010998,2]
[335253718,1724041840482,-455.495338,0.00010998,2]
[335253719,1724041840492,-455.495338,0.00010998,2]
[335253720,1724041840504,-455.495338,0.00010998,2]
[335253721,1724041840516,-455.495338,0.00010998,2]
[335253722,1724041840527,-455.495338,0.00010998,2]
[335253723,1724041840540,-455.495338,0.00010998,2]
[335253724,1724041840553,-455.495338,0.00010998,2]
[335253725,1724041840563,-455.495338,0.00010998,2]
[335253726,1724041840573,-455.495338,0.00010998,2]
[335253727,1724041840584,-455.495338,0.00010998,2]
[335253728,1724041840595,-455.495338,0.00010998,2]
[335253729,1724041840606,-151.0,0.00010998,2]
[335253730,1724041840616,-151.0,0.00010998,2]
[335253731,1724041840626,-151.0,0.00010998,2]
[335253732,1724041840636,-151.461573,0.00010998,2]
[335253733,1724041840646,-341.018635,0.00010998,2]
[335253734,1724041840656,-151.0,0.00010998,2]
[335253735,1724041840669,-341.018635,0.00010998,2]
[335253736,1724041840680,-151.645893,0.00010998,2]
[335253737,1724041840690,-341.018635,0.00010998,2]
[335253738,1724041840700,-341.018635,0.00010998,2]
[335253739,1724041840713,-341.018635,0.00010998,2]
[335253740,1724041840724,-341.018635,0.00010998,2]
[335253741,1724041840734,-341.018635,0.00010998,2]
[335253742,1724041840744,-2952.613592,0.00010998,2]
[335253743,1724041840755,-2952.613592,0.00010998,2]
[335253744,1724041840765,-341.018635,0.00010998,2]
[335253745,1724041840775,-2952.613592,0.00010998,2]
[335253746,1724041840787,-2952.613592,0.00010998,2]
[335253747,1724041840797,-341.018635,0.00010998,2]
[335253748,1724041840807,-2952.613592,0.00010998,2]
[335253749,1724041840818,-341.018635,0.00010998,2]
[335253750,1724041840829,-2952.613592,0.00010998,2]
[335253751,1724041840841,-341.018635,0.00010998,2]
[335253752,1724041840851,-341.018635,0.00010998,2]